[Event "January 9 Early 2024"]
[Site "https://www.chess.com"]
[Date "2024.01.11"]
[Round "4"]
[White "Kravtsiv, Martyn"]
[Black "Rogov, Matfey"]
[Result "1-0"]
[Board "235"]
[TimeControl "180+1"]
[WhiteFideId "14113147"]
[BlackFideId "44191308"]
[WhiteElo "2853"]
[BlackElo "2553"]
[WhiteTeam "UKR"]
[BlackTeam "RUS"]
[WhiteClock "0:00:41"]
[BlackClock "0:00:04"]

1. e4 {[%clk 0:03:00]}  e5 {[%clk 0:02:59]} 2. Nf3 {[%clk 0:03:00]}  Nc6 {[%clk 0:02:59]} 3. Bc4 {[%clk 0:03:00]}  Bc5 {[%clk 0:02:57]} 4. b4 {[%clk 0:03:00]}  Bxb4 {[%clk 0:02:57]} 5. c3 {[%clk 0:03:00]}  Ba5 {[%clk 0:02:57]} 6. d4 {[%clk 0:02:58]}  d6 {[%clk 0:02:57]} 7. dxe5 {[%clk 0:02:49]}  dxe5 {[%clk 0:02:29]} 8. Qb3 {[%clk 0:02:48]}  Qd7 {[%clk 0:02:17]} 9. O-O {[%clk 0:02:44]}  Bb6 {[%clk 0:02:07]} 10. Rd1 {[%clk 0:02:37]}  Na5 {[%clk 0:01:45]} 11. Bxf7+ {[%clk 0:02:36]}  Qxf7 {[%clk 0:01:23]} 12. Rd8+ {[%clk 0:02:36]}  Ke7 {[%clk 0:01:23]} 13. Bg5+ {[%clk 0:02:35]}  Nf6 {[%clk 0:01:12]} 14. Qxf7+ {[%clk 0:02:33]}  Kxf7 {[%clk 0:01:13]} 15. Rxh8 {[%clk 0:02:33]}  Nc4 {[%clk 0:01:05]} 16. Bxf6 {[%clk 0:02:24]}  Kxf6 {[%clk 0:01:06]} 17. Nbd2 {[%clk 0:02:23]}  Nd6 {[%clk 0:00:52]} 18. Rc1 {[%clk 0:02:07]}  h6 {[%clk 0:00:35]} 19. c4 {[%clk 0:02:07]}  Nf7 {[%clk 0:00:35]} 20. Re8 {[%clk 0:02:01]}  Bc5 {[%clk 0:00:17]} 21. Nb3 {[%clk 0:02:00]}  Ba3 {[%clk 0:00:17]} 22. Rd1 {[%clk 0:01:58]}  b6 {[%clk 0:00:17]} 23. Nxe5 {[%clk 0:01:31]}  Nxe5 {[%clk 0:00:10]} 24. Rdd8 {[%clk 0:01:32]}  a5 {[%clk 0:00:04]} 25. Rxc8 {[%clk 0:01:28]}  Rxc8 {[%clk 0:00:05]} 26. Rxc8 {[%clk 0:01:28]}  a4 {[%clk 0:00:06]} 27. Nd4 {[%clk 0:01:27]}  Bd6 {[%clk 0:00:06]} 28. Nb5 {[%clk 0:01:07]}  Ke6 {[%clk 0:00:06]} 29. Ra8 {[%clk 0:01:01]}  Nxc4 {[%clk 0:00:03]} 30. Rxa4 {[%clk 0:01:00]}  Nd2 {[%clk 0:00:03]} 31. Rd4 {[%clk 0:00:59]}  Nb1 {[%clk 0:00:01]} 32. Nxd6 {[%clk 0:00:58]}  cxd6 {[%clk 0:00:02]} 33. f4 {[%clk 0:00:56]}  Nc3 {[%clk 0:00:02]} 34. Kf2 {[%clk 0:00:53]}  Nxa2 {[%clk 0:00:02]} 35. Ke3 {[%clk 0:00:53]}  b5 {[%clk 0:00:02]} 36. f5+ {[%clk 0:00:53]}  Ke7 {[%clk 0:00:02]} 37. Kd3 {[%clk 0:00:52]}  Nc1+ {[%clk 0:00:02]} 38. Kc2 {[%clk 0:00:49]}  Ne2 {[%clk 0:00:02]} 39. Rd2 {[%clk 0:00:49]}  Nf4 {[%clk 0:00:02]} 40. Kc3 {[%clk 0:00:47]}  Nh5 {[%clk 0:00:02]} 41. Kd4 {[%clk 0:00:45]}  Nf4 {[%clk 0:00:02]} 42. Rb2 {[%clk 0:00:44]}  b4 {[%clk 0:00:02]} 43. g3 {[%clk 0:00:44]}  Nh3 {[%clk 0:00:02]} 44. Rxb4 {[%clk 0:00:43]}  Ng1 {[%clk 0:00:03]} 45. Ke3 {[%clk 0:00:42]}  Nh3 {[%clk 0:00:03]} 46. Rb7+ {[%clk 0:00:41]}  Kf6 {[%clk 0:00:03]} 47. Rd7 {[%clk 0:00:41]}  Ke5 {[%clk 0:00:02]} 48. Rxg7 {[%clk 0:00:40]}  Ng5 {[%clk 0:00:02]} 49. Rxg5 {[%clk 0:00:39]}  hxg5 {[%clk 0:00:03]} 50. h4 {[%clk 0:00:40]}  gxh4 {[%clk 0:00:03]} 51. gxh4 {[%clk 0:00:40]}  d5 {[%clk 0:00:04]} 52. exd5 {[%clk 0:00:39]}  Kxf5 {[%clk 0:00:04]} 53. Kd4 {[%clk 0:00:39]}  Kf6 {[%clk 0:00:04]} 54. Kc5 {[%clk 0:00:40]}  Ke7 {[%clk 0:00:04]} 55. Kc6 {[%clk 0:00:40]}  Kd8 {[%clk 0:00:04]} 56. h5 {[%clk 0:00:41]} 1-0

[Event "January 9 Early 2024"]
[Site "https://www.chess.com"]
[Date "2024.01.11"]
[Round "4"]
[White "Jakubowski, Krzysztof"]
[Black "Indjic, Aleksandar"]
[Result "1/2-1/2"]
[Board "236"]
[TimeControl "180+1"]
[WhiteFideId "1112848"]
[BlackFideId "911925"]
[WhiteElo "2678"]
[BlackElo "2886"]
[WhiteTeam "POL"]
[BlackTeam "SRB"]
[WhiteClock "0:00:05"]
[BlackClock "0:00:12"]

1. e4 {[%clk 0:03:00]}  d5 {[%clk 0:02:59]} 2. exd5 {[%clk 0:03:00]}  Qxd5 {[%clk 0:03:00]} 3. Nc3 {[%clk 0:02:59]}  Qa5 {[%clk 0:03:01]} 4. Bc4 {[%clk 0:02:58]}  Nf6 {[%clk 0:03:01]} 5. d3 {[%clk 0:02:56]}  c6 {[%clk 0:03:00]} 6. Bd2 {[%clk 0:02:55]}  Qc7 {[%clk 0:02:59]} 7. Nf3 {[%clk 0:02:53]}  Bg4 {[%clk 0:02:58]} 8. h3 {[%clk 0:02:52]}  Bxf3 {[%clk 0:02:57]} 9. Qxf3 {[%clk 0:02:53]}  e6 {[%clk 0:02:56]} 10. a3 {[%clk 0:02:51]}  Nbd7 {[%clk 0:02:57]} 11. Ba2 {[%clk 0:02:51]}  Be7 {[%clk 0:02:52]} 12. O-O {[%clk 0:02:50]}  O-O {[%clk 0:02:51]} 13. Rae1 {[%clk 0:02:48]}  Rfe8 {[%clk 0:02:51]} 14. Ne2 {[%clk 0:02:45]}  Bd6 {[%clk 0:02:51]} 15. g3 {[%clk 0:02:44]}  b5 {[%clk 0:02:50]} 16. h4 {[%clk 0:02:40]}  c5 {[%clk 0:02:42]} 17. Nf4 {[%clk 0:02:37]}  c4 {[%clk 0:02:41]} 18. dxc4 {[%clk 0:02:35]}  bxc4 {[%clk 0:02:41]} 19. Nh5 {[%clk 0:02:29]}  Nxh5 {[%clk 0:02:39]} 20. Qxh5 {[%clk 0:02:29]}  Nf6 {[%clk 0:02:38]} 21. Qf3 {[%clk 0:02:28]}  Nd5 {[%clk 0:02:37]} 22. Re4 {[%clk 0:02:25]}  Qb7 {[%clk 0:02:12]} 23. Bxc4 {[%clk 0:02:09]}  Qxb2 {[%clk 0:01:58]} 24. Rfe1 {[%clk 0:01:55]}  Rec8 {[%clk 0:01:33]} 25. Bd3 {[%clk 0:01:38]}  Nf6 {[%clk 0:01:29]} 26. Ra4 {[%clk 0:01:34]}  Qb6 {[%clk 0:01:16]} 27. h5 {[%clk 0:01:16]}  Qc6 {[%clk 0:01:08]} 28. Qxc6 {[%clk 0:01:13]}  Rxc6 {[%clk 0:01:09]} 29. h6 {[%clk 0:01:13]}  gxh6 {[%clk 0:01:08]} 30. Bxh6 {[%clk 0:01:09]}  Bf8 {[%clk 0:01:03]} 31. Bg5 {[%clk 0:01:04]}  Nd5 {[%clk 0:01:03]} 32. Rh4 {[%clk 0:00:58]}  f5 {[%clk 0:01:00]} 33. Bb5 {[%clk 0:00:52]}  Rb6 {[%clk 0:00:43]} 34. Bd7 {[%clk 0:00:51]}  Kf7 {[%clk 0:00:37]} 35. c4 {[%clk 0:00:51]}  Nc7 {[%clk 0:00:35]} 36. Bf4 {[%clk 0:00:46]}  Bd6 {[%clk 0:00:34]} 37. Rxh7+ {[%clk 0:00:44]}  Kg8 {[%clk 0:00:34]} 38. Rh4 {[%clk 0:00:34]}  Bxf4 {[%clk 0:00:33]} 39. Rxf4 {[%clk 0:00:34]}  Rd6 {[%clk 0:00:33]} 40. Ba4 {[%clk 0:00:32]}  Na6 {[%clk 0:00:33]} 41. Re5 {[%clk 0:00:29]}  Rc8 {[%clk 0:00:32]} 42. Ra5 {[%clk 0:00:29]}  Nc5 {[%clk 0:00:32]} 43. Rxa7 {[%clk 0:00:27]}  Rd3 {[%clk 0:00:28]} 44. Bb5 {[%clk 0:00:25]}  Rcd8 {[%clk 0:00:14]} 45. Rh4 {[%clk 0:00:18]}  Ne4 {[%clk 0:00:14]} 46. Rhh7 {[%clk 0:00:17]}  Rd1+ {[%clk 0:00:12]} 47. Kg2 {[%clk 0:00:17]}  R8d2 {[%clk 0:00:12]} 48. Rag7+ {[%clk 0:00:14]}  Kf8 {[%clk 0:00:12]} 49. Rf7+ {[%clk 0:00:14]}  Kg8 {[%clk 0:00:12]} 50. Rhg7+ {[%clk 0:00:13]}  Kh8 {[%clk 0:00:12]} 51. Rh7+ {[%clk 0:00:11]}  Kg8 {[%clk 0:00:12]} 52. Rfg7+ {[%clk 0:00:10]}  Kf8 {[%clk 0:00:12]} 53. Rf7+ {[%clk 0:00:05]}  Kg8 {[%clk 0:00:12]} 1/2-1/2

[Event "January 9 Early 2024"]
[Site "https://www.chess.com"]
[Date "2024.01.11"]
[Round "4"]
[White "Musalov, Ruslan"]
[Black "Cieslak, Patryk"]
[Result "0-1"]
[Board "237"]
[TimeControl "180+1"]
[WhiteFideId "4141490"]
[BlackFideId "21078882"]
[WhiteElo "2449"]
[BlackElo "2688"]
[WhiteTeam "RUS"]
[BlackTeam "POL"]
[WhiteClock "0:00:03"]
[BlackClock "0:00:06"]

1. e4 {[%clk 0:03:00]}  e5 {[%clk 0:02:57]} 2. Nf3 {[%clk 0:03:00]}  Nf6 {[%clk 0:02:58]} 3. Nxe5 {[%clk 0:02:58]}  Nxe4 {[%clk 0:02:59]} 4. Qe2 {[%clk 0:02:57]}  Qe7 {[%clk 0:02:57]} 5. Qxe4 {[%clk 0:02:57]}  d6 {[%clk 0:02:56]} 6. d4 {[%clk 0:02:57]}  dxe5 {[%clk 0:02:56]} 7. dxe5 {[%clk 0:02:58]}  Nc6 {[%clk 0:02:57]} 8. Nc3 {[%clk 0:02:57]}  Qxe5 {[%clk 0:02:55]} 9. Bb5 {[%clk 0:02:50]}  Qxe4+ {[%clk 0:02:50]} 10. Nxe4 {[%clk 0:02:51]}  Bd7 {[%clk 0:02:51]} 11. O-O {[%clk 0:02:49]}  O-O-O {[%clk 0:02:44]} 12. Be3 {[%clk 0:02:38]}  Be7 {[%clk 0:02:38]} 13. Rad1 {[%clk 0:02:33]}  a6 {[%clk 0:02:24]} 14. Be2 {[%clk 0:02:17]}  Rhe8 {[%clk 0:02:22]} 15. Ng3 {[%clk 0:02:00]}  Bd6 {[%clk 0:02:19]} 16. c3 {[%clk 0:01:57]}  f5 {[%clk 0:02:13]} 17. Bf3 {[%clk 0:01:24]}  f4 {[%clk 0:02:07]} 18. Rxd6 {[%clk 0:01:24]}  fxe3 {[%clk 0:02:01]} 19. Rdd1 {[%clk 0:01:19]}  exf2+ {[%clk 0:01:35]} 20. Rxf2 {[%clk 0:01:12]}  Ne5 {[%clk 0:01:36]} 21. Be4 {[%clk 0:01:06]}  g6 {[%clk 0:01:33]} 22. Rfd2 {[%clk 0:01:03]}  Nc4 {[%clk 0:01:32]} 23. Bxb7+ {[%clk 0:00:59]}  Kxb7 {[%clk 0:01:32]} 24. Rxd7 {[%clk 0:01:00]}  Rxd7 {[%clk 0:01:30]} 25. Rxd7 {[%clk 0:01:01]}  Nxb2 {[%clk 0:01:01]} 26. Rxh7 {[%clk 0:01:01]}  Re1+ {[%clk 0:01:01]} 27. Kf2 {[%clk 0:01:00]}  Nd3+ {[%clk 0:01:02]} 28. Kf3 {[%clk 0:01:00]}  Rc1 {[%clk 0:01:00]} 29. Ne4 {[%clk 0:00:56]}  Ra1 {[%clk 0:00:57]} 30. g4 {[%clk 0:00:54]}  Rxa2 {[%clk 0:00:54]} 31. h4 {[%clk 0:00:54]}  Rh2 {[%clk 0:00:22]} 32. h5 {[%clk 0:00:50]}  gxh5 {[%clk 0:00:22]} 33. gxh5 {[%clk 0:00:38]}  a5 {[%clk 0:00:22]} 34. Kg3 {[%clk 0:00:35]}  Rh1 {[%clk 0:00:18]} 35. h6 {[%clk 0:00:24]}  a4 {[%clk 0:00:18]} 36. Rd7 {[%clk 0:00:24]}  Ne5 {[%clk 0:00:10]} 37. Rd5 {[%clk 0:00:15]}  Nc6 {[%clk 0:00:10]} 38. Nc5+ {[%clk 0:00:08]}  Ka7 {[%clk 0:00:11]} 39. Nxa4 {[%clk 0:00:06]}  Rxh6 {[%clk 0:00:12]} 40. Nc5 {[%clk 0:00:05]}  Kb6 {[%clk 0:00:10]} 41. Nd3 {[%clk 0:00:03]}  Rh1 {[%clk 0:00:07]} 42. Kf4 {[%clk 0:00:04]}  Rc1 {[%clk 0:00:07]} 43. Ke4 {[%clk 0:00:03]}  Rxc3 {[%clk 0:00:08]} 44. Rf5 {[%clk 0:00:01]}  Rc4+ {[%clk 0:00:07]} 45. Ke3 {[%clk 0:00:01]}  Nd4 {[%clk 0:00:06]} 46. Nf4 {[%clk 0:00:02]}  Nxf5+ {[%clk 0:00:06]} 47. Kd3 {[%clk 0:00:03]}  Rxf4 {[%clk 0:00:06]} 0-1

[Event "January 9 Early 2024"]
[Site "https://www.chess.com"]
[Date "2024.01.11"]
[Round "4"]
[White "Lopez Idarraga, Daniel Eduardo"]
[Black "Rosen, Eric"]
[Result "0-1"]
[Board "238"]
[TimeControl "180+1"]
[WhiteFideId "4405501"]
[BlackFideId "2032562"]
[WhiteElo "2415"]
[BlackElo "2668"]
[WhiteTeam "COL"]
[BlackTeam "USA"]
[WhiteClock "0:00:01"]
[BlackClock "0:00:06"]

1. e4 {[%clk 0:03:00]}  c5 {[%clk 0:02:59]} 2. Nc3 {[%clk 0:03:00]}  a6 {[%clk 0:02:58]} 3. g3 {[%clk 0:02:59]}  b5 {[%clk 0:02:58]} 4. Bg2 {[%clk 0:03:00]}  Bb7 {[%clk 0:02:58]} 5. Nge2 {[%clk 0:03:00]}  e6 {[%clk 0:02:58]} 6. O-O {[%clk 0:03:01]}  Nf6 {[%clk 0:02:55]} 7. Re1 {[%clk 0:03:01]}  b4 {[%clk 0:02:47]} 8. Nd5 {[%clk 0:03:00]}  exd5 {[%clk 0:02:23]} 9. exd5 {[%clk 0:03:01]}  d6 {[%clk 0:02:22]} 10. Nd4+ {[%clk 0:03:01]}  Kd7 {[%clk 0:02:18]} 11. Nf3 {[%clk 0:03:01]}  Bxd5 {[%clk 0:01:57]} 12. c4 {[%clk 0:03:00]}  Bc6 {[%clk 0:01:46]} 13. d4 {[%clk 0:02:58]}  Kc8 {[%clk 0:01:33]} 14. d5 {[%clk 0:02:52]}  Bd7 {[%clk 0:01:25]} 15. a3 {[%clk 0:02:51]}  Be7 {[%clk 0:00:50]} 16. axb4 {[%clk 0:02:49]}  cxb4 {[%clk 0:00:51]} 17. c5 {[%clk 0:02:47]}  Bb5 {[%clk 0:00:49]} 18. Bf4 {[%clk 0:02:41]}  Ra7 {[%clk 0:00:32]} 19. Qc2 {[%clk 0:01:47]}  Kb7 {[%clk 0:00:29]} 20. Nd4 {[%clk 0:01:41]}  dxc5 {[%clk 0:00:23]} 21. d6+ {[%clk 0:01:38]}  Kb6 {[%clk 0:00:24]} 22. dxe7 {[%clk 0:01:37]}  Rxe7 {[%clk 0:00:24]} 23. Nb3 {[%clk 0:01:33]}  Nbd7 {[%clk 0:00:21]} 24. Bd6 {[%clk 0:01:26]}  Rxe1+ {[%clk 0:00:20]} 25. Rxe1 {[%clk 0:01:27]}  Qc8 {[%clk 0:00:20]} 26. Re7 {[%clk 0:01:07]}  Re8 {[%clk 0:00:19]} 27. h3 {[%clk 0:00:57]}  Rxe7 {[%clk 0:00:19]} 28. Bxe7 {[%clk 0:00:58]}  a5 {[%clk 0:00:18]} 29. Nd2 {[%clk 0:00:53]}  Bc6 {[%clk 0:00:17]} 30. Nc4+ {[%clk 0:00:52]}  Ka6 {[%clk 0:00:16]} 31. Bf1 {[%clk 0:00:49]}  Bb5 {[%clk 0:00:16]} 32. Nd6 {[%clk 0:00:47]}  Qc7 {[%clk 0:00:03]} 33. Nxb5 {[%clk 0:00:47]}  Qe5 {[%clk 0:00:03]} 34. Bd6 {[%clk 0:00:40]}  Qh5 {[%clk 0:00:01]} 35. Qe2 {[%clk 0:00:14]}  Kb6 {[%clk 0:00:02]} 36. Qxh5 {[%clk 0:00:11]}  Nxh5 {[%clk 0:00:02]} 37. Nc7 {[%clk 0:00:10]}  Nhf6 {[%clk 0:00:02]} 38. Bf4 {[%clk 0:00:08]}  g5 {[%clk 0:00:01]} 39. Na8+ {[%clk 0:00:05]}  Kb7 {[%clk 0:00:01]} 40. Bg2+ {[%clk 0:00:05]}  Ka6 {[%clk 0:00:01]} 41. Bxg5 {[%clk 0:00:05]}  a4 {[%clk 0:00:02]} 42. Nc7+ {[%clk 0:00:04]}  Ka5 {[%clk 0:00:03]} 43. Bf3 {[%clk 0:00:01]}  a3 {[%clk 0:00:03]} 44. bxa3 {[%clk 0:00:01]}  bxa3 {[%clk 0:00:04]} 45. Bc1 {[%clk 0:00:01]}  Kb4 {[%clk 0:00:04]} 46. Bxa3+ {[%clk 0:00:01]}  Kxa3 {[%clk 0:00:05]} 47. Kf1 {[%clk 0:00:01]}  c4 {[%clk 0:00:05]} 48. Ke1 {[%clk 0:00:01]}  c3 {[%clk 0:00:05]} 49. Kd1 {[%clk 0:00:01]}  Kb2 {[%clk 0:00:06]} 0-1

[Event "January 9 Early 2024"]
[Site "https://www.chess.com"]
[Date "2024.01.11"]
[Round "4"]
[White "Bluebaum, Matthias"]
[Black "Bachmann, Axel"]
[Result "1-0"]
[Board "239"]
[TimeControl "180+1"]
[WhiteFideId "24651516"]
[BlackFideId "3700488"]
[WhiteElo "3087"]
[BlackElo "2897"]
[WhiteTeam "GER"]
[BlackTeam "PAR"]
[WhiteClock "0:00:15"]
[BlackClock "0:00:01"]

1. d4 {[%clk 0:03:00]}  Nf6 {[%clk 0:02:38]} 2. c4 {[%clk 0:02:59]}  e6 {[%clk 0:02:39]} 3. Nc3 {[%clk 0:03:00]}  Bb4 {[%clk 0:02:38]} 4. e3 {[%clk 0:03:00]}  O-O {[%clk 0:02:33]} 5. Bd2 {[%clk 0:03:00]}  b6 {[%clk 0:02:29]} 6. Nf3 {[%clk 0:03:01]}  Bb7 {[%clk 0:02:28]} 7. Bd3 {[%clk 0:03:01]}  d5 {[%clk 0:02:27]} 8. cxd5 {[%clk 0:03:01]}  exd5 {[%clk 0:02:27]} 9. Rc1 {[%clk 0:03:02]}  Re8 {[%clk 0:02:24]} 10. Ne5 {[%clk 0:03:02]}  Bf8 {[%clk 0:02:24]} 11. f4 {[%clk 0:03:02]}  a6 {[%clk 0:02:19]} 12. O-O {[%clk 0:02:57]}  c5 {[%clk 0:02:17]} 13. Be1 {[%clk 0:02:52]}  cxd4 {[%clk 0:02:00]} 14. exd4 {[%clk 0:02:53]}  Nc6 {[%clk 0:02:00]} 15. Bf2 {[%clk 0:02:34]}  Rc8 {[%clk 0:01:56]} 16. Kh1 {[%clk 0:02:34]}  Bb4 {[%clk 0:01:47]} 17. Bf5 {[%clk 0:02:24]}  Rc7 {[%clk 0:01:45]} 18. Bh4 {[%clk 0:02:24]}  Be7 {[%clk 0:01:44]} 19. Bb1 {[%clk 0:02:06]}  Ne4 {[%clk 0:01:32]} 20. Nxe4 {[%clk 0:01:47]}  dxe4 {[%clk 0:01:22]} 21. Bg3 {[%clk 0:01:21]}  Nb4 {[%clk 0:01:08]} 22. Rxc7 {[%clk 0:01:19]}  Qxc7 {[%clk 0:01:09]} 23. a3 {[%clk 0:01:20]}  Nd3 {[%clk 0:00:39]} 24. Nxd3 {[%clk 0:01:17]}  exd3 {[%clk 0:00:40]} 25. Qxd3 {[%clk 0:01:17]}  g6 {[%clk 0:00:33]} 26. f5 {[%clk 0:01:14]}  Qc6 {[%clk 0:00:33]} 27. Qc2 {[%clk 0:00:48]}  Qxc2 {[%clk 0:00:22]} 28. Bxc2 {[%clk 0:00:49]}  Rc8 {[%clk 0:00:23]} 29. Bb1 {[%clk 0:00:44]}  Bd5 {[%clk 0:00:21]} 30. fxg6 {[%clk 0:00:44]}  hxg6 {[%clk 0:00:22]} 31. h3 {[%clk 0:00:43]}  Bg5 {[%clk 0:00:14]} 32. Kh2 {[%clk 0:00:40]}  Rc1 {[%clk 0:00:14]} 33. Bd3 {[%clk 0:00:36]}  Rxf1 {[%clk 0:00:13]} 34. Bxf1 {[%clk 0:00:36]}  Bc1 {[%clk 0:00:14]} 35. Bc7 {[%clk 0:00:26]}  b5 {[%clk 0:00:13]} 36. b4 {[%clk 0:00:18]}  Bxa3 {[%clk 0:00:12]} 37. Ba5 {[%clk 0:00:19]}  Bc1 {[%clk 0:00:07]} 38. Kg3 {[%clk 0:00:17]}  Bg5 {[%clk 0:00:03]} 39. Be2 {[%clk 0:00:16]}  Be7 {[%clk 0:00:03]} 40. Bf3 {[%clk 0:00:15]}  Bd6+ {[%clk 0:00:04]} 41. Kf2 {[%clk 0:00:15]}  Bxf3 {[%clk 0:00:03]} 42. Kxf3 {[%clk 0:00:16]}  f5 {[%clk 0:00:04]} 43. g4 {[%clk 0:00:16]}  Kf7 {[%clk 0:00:05]} 44. gxf5 {[%clk 0:00:16]}  gxf5 {[%clk 0:00:06]} 45. d5 {[%clk 0:00:15]}  Kf6 {[%clk 0:00:05]} 46. h4 {[%clk 0:00:16]}  Ke5 {[%clk 0:00:05]} 47. h5 {[%clk 0:00:15]}  Kxd5 {[%clk 0:00:06]} 48. h6 {[%clk 0:00:15]}  Be5 {[%clk 0:00:05]} 49. h7 {[%clk 0:00:15]}  Kc4 {[%clk 0:00:04]} 50. Bc7 {[%clk 0:00:15]}  Bh8 {[%clk 0:00:02]} 51. Kf4 {[%clk 0:00:16]}  Kd5 {[%clk 0:00:02]} 52. Kxf5 {[%clk 0:00:16]}  Bc3 {[%clk 0:00:01]} 53. Bd8 {[%clk 0:00:15]} 1-0

[Event "January 9 Early 2024"]
[Site "https://www.chess.com"]
[Date "2024.01.11"]
[Round "4"]
[White "Peiris, T G M"]
[Black "Thake, Conrad"]
[Result "1-0"]
[Board "242"]
[TimeControl "180+1"]
[WhiteFideId "9901310"]
[BlackFideId "5602947"]
[WhiteElo "2250"]
[BlackElo "1836"]
[WhiteTeam "SRI"]
[BlackTeam "MLT"]
[WhiteClock "0:00:09"]
[BlackClock "0:00:04"]

1. e4 {[%clk 0:03:00]}  c5 {[%clk 0:02:58]} 2. c3 {[%clk 0:03:00]}  e6 {[%clk 0:02:57]} 3. d4 {[%clk 0:03:00]}  d5 {[%clk 0:02:56]} 4. e5 {[%clk 0:02:54]}  Nc6 {[%clk 0:02:55]} 5. Nf3 {[%clk 0:02:54]}  Bd7 {[%clk 0:02:55]} 6. Be2 {[%clk 0:02:50]}  Qb6 {[%clk 0:02:55]} 7. O-O {[%clk 0:02:49]}  Rc8 {[%clk 0:02:51]} 8. a3 {[%clk 0:02:47]}  c4 {[%clk 0:02:45]} 9. Nbd2 {[%clk 0:02:40]}  Na5 {[%clk 0:02:42]} 10. Ne1 {[%clk 0:02:30]}  Nb3 {[%clk 0:02:35]} 11. Nxb3 {[%clk 0:02:28]}  Ba4 {[%clk 0:02:34]} 12. f4 {[%clk 0:02:18]}  Bxb3 {[%clk 0:02:34]} 13. Qd2 {[%clk 0:02:17]}  Ne7 {[%clk 0:02:26]} 14. Nf3 {[%clk 0:02:10]}  h6 {[%clk 0:02:20]} 15. Nh4 {[%clk 0:02:05]}  g6 {[%clk 0:02:12]} 16. Qe3 {[%clk 0:01:52]}  Bc2 {[%clk 0:02:04]} 17. g4 {[%clk 0:01:40]}  Be4 {[%clk 0:01:50]} 18. Bf3 {[%clk 0:01:36]}  Bd3 {[%clk 0:01:41]} 19. Rf2 {[%clk 0:01:34]}  Bg7 {[%clk 0:01:25]} 20. b4 {[%clk 0:01:25]}  a5 {[%clk 0:01:21]} 21. Bd2 {[%clk 0:01:22]}  axb4 {[%clk 0:01:16]} 22. axb4 {[%clk 0:01:20]}  Kd7 {[%clk 0:01:15]} 23. Be1 {[%clk 0:01:07]}  Ra8 {[%clk 0:01:14]} 24. Rfa2 {[%clk 0:01:06]}  Rxa2 {[%clk 0:01:11]} 25. Rxa2 {[%clk 0:01:06]}  Bb1 {[%clk 0:01:02]} 26. Ra1 {[%clk 0:01:03]}  Bd3 {[%clk 0:01:01]} 27. Qd2 {[%clk 0:00:58]}  Rb8 {[%clk 0:00:44]} 28. Ng2 {[%clk 0:00:56]}  Qd8 {[%clk 0:00:38]} 29. Bh4 {[%clk 0:00:45]}  Ra8 {[%clk 0:00:36]} 30. Qb2 {[%clk 0:00:38]}  Qb8 {[%clk 0:00:28]} 31. b5 {[%clk 0:00:35]}  Nc8 {[%clk 0:00:18]} 32. Ne1 {[%clk 0:00:33]}  Rxa1 {[%clk 0:00:16]} 33. Qxa1 {[%clk 0:00:33]}  Qa7 {[%clk 0:00:17]} 34. Qb2 {[%clk 0:00:29]}  b6 {[%clk 0:00:17]} 35. Nxd3 {[%clk 0:00:26]}  cxd3 {[%clk 0:00:16]} 36. Kf2 {[%clk 0:00:25]}  Qa5 {[%clk 0:00:16]} 37. Ke3 {[%clk 0:00:24]}  Na7 {[%clk 0:00:16]} 38. Kxd3 {[%clk 0:00:22]}  Qxb5+ {[%clk 0:00:16]} 39. Qxb5+ {[%clk 0:00:20]}  Nxb5 {[%clk 0:00:16]} 40. Bd1 {[%clk 0:00:20]}  Kc6 {[%clk 0:00:15]} 41. Ba4 {[%clk 0:00:20]}  Bf8 {[%clk 0:00:08]} 42. Bf6 {[%clk 0:00:20]}  Ba3 {[%clk 0:00:06]} 43. h4 {[%clk 0:00:19]}  Bc1 {[%clk 0:00:06]} 44. f5 {[%clk 0:00:12]}  gxf5 {[%clk 0:00:05]} 45. g5 {[%clk 0:00:11]}  hxg5 {[%clk 0:00:05]} 46. Bxg5 {[%clk 0:00:09]}  Bxg5 {[%clk 0:00:04]} 47. hxg5 {[%clk 0:00:09]} 1-0

[Event "January 9 Early 2024"]
[Site "https://www.chess.com"]
[Date "2024.01.11"]
[Round "4"]
[White "Bologan, Victor"]
[Black "Chu, Wei Chao"]
[Result "0-1"]
[Board "243"]
[TimeControl "180+1"]
[WhiteFideId "13900048"]
[BlackFideId "8605661"]
[WhiteElo "2779"]
[BlackElo "2596"]
[WhiteTeam "MDA"]
[BlackTeam "CHN"]
[WhiteClock "0:00:25"]
[BlackClock "0:00:05"]

1. e4 {[%clk 0:03:00]}  e5 {[%clk 0:02:59]} 2. Nf3 {[%clk 0:03:00]}  Nc6 {[%clk 0:03:00]} 3. Bc4 {[%clk 0:03:00]}  Bc5 {[%clk 0:03:00]} 4. c3 {[%clk 0:02:59]}  Nf6 {[%clk 0:03:00]} 5. d3 {[%clk 0:03:00]}  d6 {[%clk 0:03:01]} 6. Nbd2 {[%clk 0:02:59]}  O-O {[%clk 0:03:00]} 7. h3 {[%clk 0:02:58]}  a5 {[%clk 0:03:01]} 8. Nf1 {[%clk 0:02:58]}  a4 {[%clk 0:02:55]} 9. Ng3 {[%clk 0:02:56]}  Bd7 {[%clk 0:02:50]} 10. Bg5 {[%clk 0:02:51]}  h6 {[%clk 0:02:46]} 11. Bh4 {[%clk 0:02:51]}  Na5 {[%clk 0:02:26]} 12. Nh5 {[%clk 0:02:49]}  g5 {[%clk 0:02:16]} 13. Nxg5 {[%clk 0:02:48]}  Nxc4 {[%clk 0:02:16]} 14. Nxf6+ {[%clk 0:02:29]}  Qxf6 {[%clk 0:02:12]} 15. Nf3 {[%clk 0:02:29]}  Qg6 {[%clk 0:01:58]} 16. dxc4 {[%clk 0:02:25]}  Qxe4+ {[%clk 0:01:58]} 17. Qe2 {[%clk 0:02:24]}  Qxe2+ {[%clk 0:01:51]} 18. Kxe2 {[%clk 0:02:24]}  Be6 {[%clk 0:01:51]} 19. Nd2 {[%clk 0:02:23]}  f5 {[%clk 0:01:49]} 20. b4 {[%clk 0:02:12]}  axb3 {[%clk 0:01:48]} 21. axb3 {[%clk 0:02:11]}  Kf7 {[%clk 0:01:41]} 22. f4 {[%clk 0:02:06]}  e4 {[%clk 0:01:38]} 23. Bf2 {[%clk 0:02:03]}  Rg8 {[%clk 0:01:12]} 24. Bxc5 {[%clk 0:02:00]}  dxc5 {[%clk 0:01:12]} 25. Rxa8 {[%clk 0:01:55]}  Rxa8 {[%clk 0:01:12]} 26. g4 {[%clk 0:01:50]}  Ra2 {[%clk 0:01:08]} 27. gxf5 {[%clk 0:01:24]}  Bxf5 {[%clk 0:01:09]} 28. Ke3 {[%clk 0:01:23]}  Rc2 {[%clk 0:01:07]} 29. Nxe4 {[%clk 0:01:23]}  Bxe4 {[%clk 0:01:07]} 30. Kxe4 {[%clk 0:01:22]}  Rxc3 {[%clk 0:01:08]} 31. h4 {[%clk 0:01:14]}  Rxb3 {[%clk 0:01:02]} 32. Rd1 {[%clk 0:01:13]}  Rc3 {[%clk 0:00:53]} 33. Kf5 {[%clk 0:01:08]}  Ke7 {[%clk 0:00:28]} 34. Kg6 {[%clk 0:01:01]}  Rxc4 {[%clk 0:00:28]} 35. Re1+ {[%clk 0:01:00]}  Kf8 {[%clk 0:00:24]} 36. f5 {[%clk 0:00:58]}  Rxh4 {[%clk 0:00:16]} 37. Ra1 {[%clk 0:00:57]}  Ke7 {[%clk 0:00:11]} 38. f6+ {[%clk 0:00:54]}  Kd6 {[%clk 0:00:10]} 39. Rf1 {[%clk 0:00:51]}  Rg4+ {[%clk 0:00:09]} 40. Kh7 {[%clk 0:00:50]}  Ra4 {[%clk 0:00:08]} 41. f7 {[%clk 0:00:49]}  Ra8 {[%clk 0:00:08]} 42. f8=Q+ {[%clk 0:00:46]}  Rxf8 {[%clk 0:00:08]} 43. Rxf8 {[%clk 0:00:46]}  c4 {[%clk 0:00:08]} 44. Kxh6 {[%clk 0:00:45]}  b5 {[%clk 0:00:09]} 45. Kg5 {[%clk 0:00:41]}  c3 {[%clk 0:00:08]} 46. Rf1 {[%clk 0:00:36]}  Ke5 {[%clk 0:00:04]} 47. Re1+ {[%clk 0:00:32]}  Kd4 {[%clk 0:00:05]} 48. Kf4 {[%clk 0:00:32]}  c2 {[%clk 0:00:04]} 49. Re7 {[%clk 0:00:25]}  c1=Q+ {[%clk 0:00:03]} 50. Kf5 {[%clk 0:00:25]}  Qc5+ {[%clk 0:00:03]} 51. Ke6 {[%clk 0:00:25]}  Qxe7+ {[%clk 0:00:03]} 52. Kxe7 {[%clk 0:00:25]}  c5 {[%clk 0:00:04]} 53. Kd6 {[%clk 0:00:25]}  b4 {[%clk 0:00:05]} 0-1